fUST/lending_fUST_20250530
["ID","MTS","AMOUNT","RATE_DAILY","PERIOD"]
[362996257,1748545846887,-450.0,0.0002,2]
[362996258,1748545846897,-430.0,0.0002,2]
[362996259,1748545846906,-925.19,0.0002,2]
[362996260,1748545846916,-430.0,0.0002,2]
[362996261,1748545846925,-822.77,0.0002,2]
[362996262,1748545846935,-430.0,0.0002,2]
[362996263,1748545846944,-430.0,0.0002,2]
[362996264,1748545846954,-469.27666489,0.0002,2]
[362996265,1748545846963,-430.0,0.0002,2]
[362996266,1748545846973,-430.0,0.0002,2]
[362996267,1748545846982,-10228.44,0.0002,2]
[362996268,1748545846991,-311.68518405,0.0002,2]
[362996269,1748545847001,-330.0,0.0002,2]
[362996270,1748545847011,-430.0,0.0002,2]
[362996271,1748545847020,-450.0,0.0002,2]
[362996272,1748545847029,-3048.88,0.0002,2]
[362996273,1748545847040,-430.0,0.0002,2]
[362996274,1748545847053,-547.61,0.0002,2]
[362996275,1748545847062,-430.0,0.0002,2]
[362996276,1748545847071,-430.0,0.0002,2]
[362996277,1748545847080,-1353.14,0.0002,2]
[362996278,1748545847089,-430.0,0.0002,2]
[362996279,1748545847098,-178.4201111,0.0002,2]
[362996280,1748545847108,-1599.26,0.0002,2]
[362996281,1748545847124,-430.0,0.0002,2]
[362996282,1748545847133,-4183.8,0.0002,2]
[362996283,1748545847143,-430.0,0.0002,2]
[362996284,1748545847152,-430.0,0.0002,2]
[362996285,1748545847161,-6497.63,0.0002,2]
[362996286,1748545847170,-430.0,0.0002,2]
[362996287,1748545847179,-515.58,0.0002,2]
[362996288,1748545847188,-430.0,0.0002,2]
[362996289,1748545847197,-500.0,0.0002,2]
[362996290,1748545847206,-430.0,0.0002,2]
[362996291,1748545847215,-430.0,0.0002,2]
[362996292,1748545847223,-515.3,0.0002,2]
[362996293,1748545847232,-4275.69,0.0002,2]
[362996294,1748545847241,-442.32,0.0002,2]
[362996295,1748545847250,-450.0,0.0002,2]
[362996296,1748545847259,-380.0,0.0002,2]
[362996297,1748545847268,-679.93,0.0002,2]
[362996298,1748545847277,-430.0,0.0002,2]
[362996299,1748545847286,-2565.74,0.0002,2]
[362996300,1748545847295,-430.0,0.0002,2]
[362996301,1748545847307,-430.0,0.0002,2]
[362996302,1748545847316,-3040.55,0.0002,2]
[362996303,1748545847325,-430.0,0.0002,2]
[362996304,1748545847334,-178.77994709,0.0002,2]
[362996305,1748545847343,-430.0,0.0002,2]
[362996306,1748545847356,-1772.83,0.0002,2]
[362996307,1748545847365,-2560.95,0.0002,2]
[362996308,1748545847374,-404.72,0.0002,2]
[362996309,1748545847383,-430.0,0.0002,2]
[362996310,1748545847393,-430.0,0.0002,2]
[362996311,1748545847404,-430.0,0.0002,2]
[362996312,1748545847414,-6220.01,0.0002,2]
[362996313,1748545847425,-430.0,0.0002,2]
[362996314,1748545847441,-430.0,0.0002,2]
[362996315,1748545847451,-430.0,0.0002,2]
[362996316,1748545847461,-204.11595402,0.0002,2]
[362996317,1748545847470,-430.0,0.0002,2]
[362996318,1748545847479,-3911.06,0.0002,2]
[362996319,1748545847489,-430.0,0.0002,2]
[362996320,1748545847498,-430.0,0.0002,2]
[362996321,1748545847506,-430.0,0.0002,2]
[362996322,1748545847516,-430.0,0.0002,2]
[362996323,1748545847525,-8386.41,0.0002,2]
[362996324,1748545847535,-3076.94,0.0002,2]
[362996325,1748545847547,-430.0,0.0002,2]
[362996326,1748545847557,-430.0,0.0002,2]
[362996327,1748545847567,-4007.18,0.0002,2]
[362996328,1748545847576,-450.0,0.0002,2]
[362996329,1748545847585,-512.08,0.0002,2]
[362996330,1748545847595,-4976.05,0.0002,2]
[362996331,1748545847604,-430.0,0.0002,2]
[362996332,1748545847614,-967.55,0.0002,2]
[362996333,1748545847623,-260.0,0.0002,2]
[362996334,1748545847633,-533.14642579,0.0002,2]
[362996335,1748545847643,-430.0,0.0002,2]
[362996336,1748545847653,-3119.18,0.0002,2]
[362996337,1748545847663,-270.0,0.0002,2]
[362996339,1748545847672,-5350.95,0.0002,2]
[362996341,1748545847681,-430.0,0.0002,2]
[362996343,1748545847690,-430.0,0.0002,2]
[362996345,1748545847700,-430.0,0.0002,2]
[362996346,1748545847709,-430.0,0.0002,2]
[362996348,1748545847718,-430.0,0.0002,2]
[362996350,1748545847728,-430.0,0.0002,2]
[362996352,1748545847737,-430.0,0.0002,2]
[362996354,1748545847747,-797.0,0.0002,2]
[362996356,1748545847755,-500.0,0.00020021,2]
[362996358,1748545847765,-1013.19229648,0.00020021,2]
[362996360,1748545847774,-797.0,0.00020028,2]
[362996362,1748545847782,-797.0,0.00020055,2]
[362996364,1748545847791,-1069.19004496,0.00020072,2]
[362996366,1748545847804,-797.0,0.00020082,2]
[362996368,1748545847814,-797.0,0.0002011,2]
[362996369,1748545847823,-819.09610863,0.00020137,2]
[362996371,1748545847832,-160.0,0.00020141,2]
[362996373,1748545847842,-842.5625,0.00020151,2]
[362996375,1748545847852,-160.0,0.00020151,2]
[362996377,1748545847861,-212.70147903,0.00020151,2]
[362996379,1748545847871,-12660.97845086,0.00020151,2]
[362996381,1748545847879,-423.31762986,0.00020151,2]
[362996383,1748545847888,-229.26895353,0.00020151,2]
[362996385,1748545847897,-160.0,0.00020151,2]
[362996387,1748545847908,-160.0,0.00020151,2]
[362996389,1748545847919,-160.0,0.00020151,2]
[362996391,1748545847928,-160.0,0.00020151,2]
[362996393,1748545847938,-876.738482,0.00020187,2]
[362996395,1748545847947,-151.0,0.000202,3]
[362996397,1748545847957,-1069.19004496,0.00020245,2]
[362996399,1748545847966,-1471.91523,0.00020273,2]
[362996401,1748545847975,-151.0,0.00020273,2]
[362996403,1748545847984,-151.0,0.00020273,2]
[362996405,1748545847994,-4195.09702,0.00020273,2]
[362996407,1748545848003,-1731.54803,0.00020273,2]
[362996409,1748545848012,-1731.54803,0.00020273,2]
[362996410,1748545848021,-430.0,0.00020273,2]
[362996412,1748545848031,-323.513866,0.00020273,2]
[362996414,1748545848041,-323.513866,0.00020273,2]
[362996416,1748545848055,-430.0,0.00020273,2]
[362996418,1748545848065,-753.990507,0.00020273,2]
[362996420,1748545848074,-430.0,0.00020273,2]
[362996422,1748545848085,-753.990507,0.00020273,2]
[362996424,1748545848095,-430.0,0.00020273,2]
[362996426,1748545848104,-2641.05,0.00020273,2]
[362996428,1748545848113,-430.0,0.00020273,2]
[362996430,1748545848123,-430.0,0.00020273,2]
[362996432,1748545848133,-430.0,0.00020273,2]
[362996434,1748545848143,-822.05,0.00020273,2]
[362996435,1748545848153,-2102.37,0.00020273,2]
[362996436,1748545848163,-430.0,0.00020273,2]
[362996437,1748545848174,-430.0,0.00020273,2]
[362996438,1748545848183,-430.0,0.00020273,2]
[362996439,1748545848306,-430.0,0.00020273,2]
[362996440,1748545848322,-470.0,0.00020273,2]
[362996441,1748545848338,-598.33,0.00020273,2]
[362996442,1748545848348,-430.0,0.00020273,2]
[362996443,1748545848361,-450.0,0.00020273,2]
[362996444,1748545848372,-430.0,0.00020273,2]
[362996445,1748545848383,-430.0,0.00020273,2]
[362996446,1748545848394,-430.0,0.00020273,2]
[362996447,1748545848404,-430.0,0.00020273,2]
[362996448,1748545848414,-430.0,0.00020273,2]
[362996449,1748545848424,-430.0,0.00020273,2]
[362996451,1748545848435,-430.0,0.00020273,2]
[362996453,1748545848444,-430.0,0.00020273,2]
[362996455,1748545848455,-1048.81,0.00020273,2]
[362996456,1748545848465,-430.0,0.00020273,2]
[362996458,1748545848476,-3306.1,0.00020273,2]
[362996461,1748545848487,-430.0,0.00020273,2]
[362996462,1748545848498,-430.0,0.00020273,2]
[362996464,1748545848508,-430.0,0.00020273,2]
[362996467,1748545848518,-430.0,0.00020273,2]
[362996468,1748545848530,-430.0,0.00020273,2]
[362996470,1748545848539,-430.0,0.00020273,2]
[362996472,1748545848553,-272.29704008,0.00020273,2]
[362996474,1748545848562,-689.98,0.00020273,2]
[362996476,1748545848572,-163.08,0.00020273,2]
[362996478,1748545848584,-430.0,0.00020273,2]
[362996480,1748545848594,-430.0,0.00020273,2]
[362996482,1748545848604,-441.41,0.00020273,2]
[362996484,1748545848615,-390.0,0.00020273,2]
[362996485,1748545848625,-285.75777632,0.00020273,2]
[362996486,1748545848636,-1465.73,0.00020273,2]
[362996487,1748545848646,-4035.27,0.00020273,2]
[362996489,1748545848656,-430.0,0.00020273,2]
[362996491,1748545848666,-438.96,0.00020273,2]
[362996493,1748545848676,-526.05103504,0.00020273,2]
[362996495,1748545848686,-430.0,0.00020273,2]
[362996497,1748545848695,-430.0,0.00020273,2]
[362996499,1748545848705,-535.39,0.00020273,2]
[362996501,1748545848715,-430.0,0.00020273,2]
[362996503,1748545848723,-450.0,0.00020273,2]
[362996505,1748545848733,-430.0,0.00020273,2]
[362996507,1748545848743,-430.0,0.00020273,2]
[362996509,1748545848752,-470.0,0.00020273,2]
[362996511,1748545848761,-1042.83,0.00020273,2]
[362996513,1748545848771,-10628.62,0.00020273,2]
[362996515,1748545848780,-430.0,0.00020273,2]
[362996518,1748545848790,-925.19,0.00020273,2]
[362996519,1748545848802,-454.26086064,0.00020273,2]
[362996522,1748545848812,-822.77,0.00020273,2]
[362996523,1748545848821,-430.0,0.00020273,2]
[362996526,1748545848831,-430.0,0.00020273,2]
[362996527,1748545848841,-450.0,0.00020273,2]
[362996529,1748545848850,-430.0,0.00020273,2]
[362996532,1748545848861,-10228.44,0.00020273,2]
[362996533,1748545848871,-332.28529561,0.00020273,2]
[362996536,1748545848880,-3048.88,0.00020273,2]
[362996538,1748545848891,-430.0,0.00020273,2]
[362996540,1748545848900,-547.61,0.00020273,2]
[362996542,1748545848910,-430.0,0.00020273,2]
[362996543,1748545848919,-430.0,0.00020273,2]
[362996545,1748545848928,-1353.14,0.00020273,2]
[362996547,1748545848938,-155.28984581,0.00020273,2]
[362996550,1748545848948,-1599.26,0.00020273,2]
[362996552,1748545848957,-430.0,0.00020273,2]
[362996553,1748545848967,-4183.8,0.00020273,2]
[362996555,1748545848975,-430.0,0.00020273,2]
[362996557,1748545848984,-430.0,0.00020273,2]
[362996559,1748545848993,-6497.63,0.00020273,2]
[362996561,1748545849003,-490.0,0.00020273,2]
[362996563,1748545849012,-515.58,0.00020273,2]
[362996565,1748545849022,-430.0,0.00020273,2]
[362996567,1748545849031,-500.0,0.00020273,2]
[362996569,1748545849041,-430.0,0.00020273,2]
[362996571,1748545849054,-430.0,0.00020273,2]
[362996573,1748545849063,-515.3,0.00020273,2]
[362996575,1748545849073,-4275.69,0.00020273,2]
[362996577,1748545849082,-442.32,0.00020273,2]
[362996579,1748545849091,-679.93,0.00020273,2]
[362996581,1748545849101,-353.82857628,0.00020273,2]
[362996583,1748545849111,-2565.74,0.00020273,2]
[362996585,1748545849121,-430.0,0.00020273,2]
[362996587,1748545849131,-430.0,0.00020273,2]
[362996589,1748545849141,-3040.55,0.00020273,2]
[362996591,1748545849150,-430.0,0.00020273,2]
[362996593,1748545849160,-430.0,0.00020273,2]
[362996595,1748545849169,-1772.83,0.00020273,2]
[362996597,1748545849179,-2560.95,0.00020273,2]
[362996599,1748545849187,-430.0,0.00020273,2]
[362996600,1748545849196,-430.0,0.00020273,2]
[362996602,1748545849205,-430.0,0.00020273,2]
[362996604,1748545849214,-6220.01,0.00020273,2]
[362996606,1748545849224,-430.0,0.00020273,2]
[362996608,1748545849233,-440.0,0.00020273,2]
[362996610,1748545849244,-430.0,0.00020273,2]
[362996611,1748545849254,-430.0,0.00020273,2]
[362996612,1748545849264,-3911.06,0.00020273,2]
[362996613,1748545849274,-470.0,0.00020273,2]
[362996615,1748545849284,-430.0,0.00020273,2]
[362996616,1748545849293,-430.0,0.00020273,2]
[362996618,1748545849308,-430.0,0.00020273,2]
[362996620,1748545849318,-8386.41,0.00020273,2]
[362996622,1748545849328,-3076.94,0.00020273,2]
[362996624,1748545849338,-430.0,0.00020273,2]
[362996626,1748545849351,-430.0,0.00020273,2]
[362996628,1748545849362,-4007.18,0.00020273,2]
[362996630,1748545849372,-512.08,0.00020273,2]
[362996632,1748545849382,-4976.05,0.00020273,2]
[362996634,1748545849393,-430.0,0.00020273,2]
[362996636,1748545849402,-967.55,0.00020273,2]
[362996638,1748545849411,-401.58972257,0.00020273,2]
[362996641,1748545849421,-3119.18,0.00020273,2]
[362996643,1748545849430,-5350.95,0.00020273,2]
[362996645,1748545849441,-470.0,0.00020273,2]
[362996647,1748545849449,-272.85335192,0.00020273,2]
[362996648,1748545849457,-430.0,0.00020273,2]
[362996651,1748545849468,-184.15922151,0.00020273,2]
[362996653,1748545849478,-430.0,0.00020273,2]
[362996654,1748545849487,-151.0,0.000203,4]
[362996657,1748545849498,-455.64011539,0.0002031,2]
[362996658,1748545849507,-1069.19004496,0.00020417,3]
[362996661,1748545849516,-734.633,0.00020483,2]
[362996663,1748545849526,-176.70832624,0.00020483,2]
[362996665,1748545849536,-151.0,0.000205,3]
[362996667,1748545849551,-1117.1,0.00020538,3]
[362996668,1748545849561,-558.56,0.00020538,3]
[362996670,1748545849570,-668.02,0.00020538,3]
[362996672,1748545849579,-334.0,0.00020538,3]
[362996675,1748545849589,-1471.91523,0.00020547,2]
[362996676,1748545849598,-151.0,0.00020547,2]
[362996679,1748545849609,-151.0,0.00020547,2]
[362996680,1748545849619,-4195.09702,0.00020547,2]
[362996682,1748545849628,-1731.54803,0.00020547,2]
[362996684,1748545849637,-1731.54803,0.00020547,2]
[362996686,1748545849646,-430.0,0.00020547,2]
[362996688,1748545849655,-753.990507,0.00020547,2]
[362996690,1748545849664,-430.0,0.00020547,2]
[362996692,1748545849674,-753.990507,0.00020547,2]
[362996694,1748545849683,-430.0,0.00020547,2]
[362996696,1748545849692,-2641.05,0.00020547,2]
[362996698,1748545849701,-430.0,0.00020547,2]
[362996700,1748545849711,-430.0,0.00020547,2]
[362996702,1748545849719,-430.0,0.00020547,2]
[362996704,1748545849729,-822.05,0.00020547,2]
[362996706,1748545849739,-2102.37,0.00020547,2]
[362996708,1748545849748,-430.0,0.00020547,2]
[362996710,1748545849758,-450.0,0.00020547,2]
[362996712,1748545849769,-598.33,0.00020547,2]
[362996714,1748545849783,-430.0,0.00020547,2]
[362996716,1748545849794,-430.0,0.00020547,2]
[362996718,1748545849817,-430.0,0.00020547,2]
[362996720,1748545849827,-430.0,0.00020547,2]
[362996722,1748545849838,-430.0,0.00020547,2]
[362996724,1748545849849,-430.0,0.00020547,2]
[362996726,1748545849859,-1048.81,0.00020547,2]
[362996728,1748545849868,-430.0,0.00020547,2]
[362996730,1748545849878,-3306.1,0.00020547,2]
[362996732,1748545849887,-430.0,0.00020547,2]
[362996734,1748545849896,-180.99538037,0.00020547,2]
[362996736,1748545849906,-430.0,0.00020547,2]
[362996738,1748545849916,-430.0,0.00020547,2]
[362996739,1748545849924,-430.0,0.00020547,2]
[362996741,1748545849934,-430.0,0.00020547,2]
[362996743,1748545849943,-689.98,0.00020547,2]
[362996745,1748545849953,-293.88189208,0.00020547,2]
[362996747,1748545849962,-430.0,0.00020547,2]
[362996749,1748545849971,-441.41,0.00020547,2]
[362996751,1748545849980,-1465.73,0.00020547,2]
[362996753,1748545849989,-4035.27,0.00020547,2]
[362996755,1748545849998,-430.0,0.00020547,2]
[362996757,1748545850007,-438.96,0.00020547,2]
[362996759,1748545850017,-430.0,0.00020547,2]
[362996761,1748545850027,-430.0,0.00020547,2]
[362996763,1748545850035,-535.39,0.00020547,2]
[362996765,1748545850044,-430.0,0.00020547,2]
[362996767,1748545850060,-510.0,0.00020547,2]
[362996769,1748545850070,-430.0,0.00020547,2]
[362996771,1748545850080,-1042.83,0.00020547,2]
[362996773,1748545850089,-10628.62,0.00020547,2]
[362996775,1748545850098,-430.0,0.00020547,2]
[362996777,1748545850107,-925.19,0.00020547,2]
[362996778,1748545850116,-822.77,0.00020547,2]
[362996780,1748545850126,-430.0,0.00020547,2]
[362996782,1748545850135,-430.0,0.00020547,2]
[362996784,1748545850144,-430.0,0.00020547,2]
[362996786,1748545850154,-10228.44,0.00020547,2]
[362996788,1748545850163,-3048.88,0.00020547,2]
[362996790,1748545850172,-430.0,0.00020547,2]
[362996792,1748545850182,-547.61,0.00020547,2]
[362996794,1748545850191,-430.0,0.00020547,2]
[362996796,1748545850200,-1353.14,0.00020547,2]
[362996798,1748545850210,-1599.26,0.00020547,2]
[362996800,1748545850220,-430.0,0.00020547,2]
[362996802,1748545850229,-4183.8,0.00020547,2]
[362996804,1748545850237,-430.0,0.00020547,2]
[362996806,1748545850246,-430.0,0.00020547,2]
[362996808,1748545850255,-6497.63,0.00020547,2]
[362996810,1748545850264,-515.58,0.00020547,2]
[362996812,1748545850274,-430.0,0.00020547,2]
[362996813,1748545850283,-250.83,0.00020547,2]
[362996815,1748545850293,-500.0,0.00020547,2]
[362996817,1748545850307,-430.0,0.00020547,2]
[362996819,1748545850316,-515.3,0.00020547,2]
[362996821,1748545850326,-4275.69,0.00020547,2]
[362996823,1748545850335,-442.32,0.00020547,2]
[362996825,1748545850345,-679.93,0.00020547,2]
[362996827,1748545850356,-2565.74,0.00020547,2]
[362996829,1748545850368,-430.0,0.00020547,2]
[362996831,1748545850378,-3040.55,0.00020547,2]
[362996833,1748545850388,-430.0,0.00020547,2]
[362996835,1748545850399,-430.0,0.00020547,2]
[362996837,1748545850409,-1772.83,0.00020547,2]
[362996839,1748545850418,-2560.95,0.00020547,2]
[362996841,1748545850428,-430.0,0.00020547,2]
[362996843,1748545850439,-430.0,0.00020547,2]
[362996845,1748545850449,-6220.01,0.00020547,2]
[362996847,1748545850458,-669.503184,0.00020547,2]
[362996849,1748545850468,-430.0,0.00020547,2]
[362996851,1748545850477,-156.788198,0.00020547,2]
[362996853,1748545850486,-430.0,0.00020547,2]
[362996855,1748545850495,-669.503184,0.00020547,2]
[362996856,1748545850505,-430.0,0.00020547,2]
[362996858,1748545850514,-3911.06,0.00020547,2]
[362996860,1748545850524,-156.788198,0.00020547,2]
[362996862,1748545850533,-430.0,0.00020547,2]
[362996864,1748545850543,-430.0,0.00020547,2]
[362996866,1748545850558,-430.0,0.00020547,2]
[362996868,1748545850568,-8386.41,0.00020547,2]
[362996870,1748545850577,-3076.94,0.00020547,2]
[362996872,1748545850586,-310.0,0.00020547,2]
[362996874,1748545850596,-430.0,0.00020547,2]
[362996876,1748545850606,-4007.18,0.00020547,2]
[362996878,1748545850615,-512.08,0.00020547,2]
[362996880,1748545850625,-4976.05,0.00020547,2]
[362996882,1748545850634,-430.0,0.00020547,2]
[362996884,1748545850644,-967.55,0.00020547,2]
[362996886,1748545850653,-151.0,0.00020547,2]
[362996888,1748545850662,-3119.18,0.00020547,2]
[362996890,1748545850671,-151.0,0.00020547,2]
[362996892,1748545850682,-5350.95,0.00020547,2]
[362996894,1748545850691,-430.0,0.00020547,2]
[362996896,1748545850700,-430.0,0.00020547,2]
[362996898,1748545850709,-515.161945,0.00020547,2]
[362996900,1748545850719,-515.161945,0.00020547,2]
[362996902,1748545850729,-1069.19004496,0.0002059,3]
[362996904,1748545850738,-323.513866,0.0002061,2]
[362996906,1748545850747,-323.513866,0.0002061,2]
[362996908,1748545850757,-151.0,0.000207,3]
[362996910,1748545850765,-455.64011539,0.00020721,2]
[362996912,1748545850774,-1069.19004496,0.00020762,3]
[362996913,1748545850784,-6000.0,0.000208,5]
[362996915,1748545850793,-1471.91523,0.00020821,2]
[362996917,1748545850806,-151.0,0.00020821,2]
[362996919,1748545850815,-151.0,0.00020821,2]
[362996921,1748545850824,-4195.09702,0.00020821,2]
[362996923,1748545850833,-1731.54803,0.00020821,2]
[362996925,1748545850842,-1731.54803,0.00020821,2]
[362996927,1748545850851,-430.0,0.00020821,2]
[362996929,1748545850860,-753.990507,0.00020821,2]
[362996931,1748545850870,-534.25243388,0.00020821,2]
[362996933,1748545850879,-753.990507,0.00020821,2]
[362996935,1748545850888,-474.25543598,0.00020821,2]
[362996937,1748545850896,-2641.05,0.00020821,2]
[362996939,1748545850905,-430.0,0.00020821,2]
[362996941,1748545850914,-430.0,0.00020821,2]
[362996942,1748545850923,-430.0,0.00020821,2]
[362996944,1748545850932,-822.05,0.00020821,2]
[362996946,1748545850941,-2102.37,0.00020821,2]
[362996948,1748545850951,-151.0,0.00020821,2]
[362996950,1748545850960,-430.0,0.00020821,2]
[362996952,1748545850969,-269.645922,0.00020821,2]
[362996954,1748545850978,-269.645922,0.00020821,2]
[362996956,1748545850989,-598.33,0.00020821,2]
[362996958,1748545850998,-151.0,0.00020821,2]
[362996960,1748545851007,-430.0,0.00020821,2]
[362996962,1748545851015,-329.67536577,0.00020821,2]
[362996964,1748545851025,-430.0,0.00020821,2]
[362996966,1748545851034,-430.0,0.00020821,2]
[362996968,1748545851044,-430.0,0.00020821,2]
[362996970,1748545851056,-151.0,0.00020821,2]
[362996972,1748545851065,-1048.81,0.00020821,2]
[362996974,1748545851075,-151.0,0.00020821,2]
[362996976,1748545851083,-222.860804,0.00020821,2]
[362996978,1748545851093,-151.0,0.00020821,2]
[362996980,1748545851102,-222.860804,0.00020821,2]
[362996982,1748545851111,-430.0,0.00020821,2]
[362996984,1748545851121,-3306.1,0.00020821,2]
[362996986,1748545851129,-430.0,0.00020821,2]
[362996988,1748545851138,-430.0,0.00020821,2]
[362996990,1748545851147,-430.0,0.00020821,2]
[362997004,1748545851264,-430.0,0.00020821,2]
[362997006,1748545851275,-163.218252,0.00020821,2]
[362997008,1748545851284,-151.0,0.00020821,2]
[362997010,1748545851294,-163.218252,0.00020821,2]
[362997012,1748545851308,-689.98,0.00020821,2]
[362997014,1748545851318,-158.15928826,0.00020821,2]
[362997016,1748545851327,-441.41,0.00020821,2]
[362997018,1748545851337,-4035.27,0.00020821,2]
[362997020,1748545851350,-1465.73,0.00020821,2]
[362997022,1748545851364,-430.0,0.00020821,2]
[362997024,1748545851381,-438.96,0.00020821,2]
[362997026,1748545851391,-1280.732427,0.00020821,2]
[362997028,1748545851401,-430.0,0.00020821,2]
[362997030,1748545851412,-430.0,0.00020821,2]
[362997032,1748545851422,-1280.732427,0.00020821,2]
[362997034,1748545851432,-535.39,0.00020821,2]
[362997036,1748545851442,-365.31,0.00020821,2]
[362997038,1748545851452,-430.0,0.00020821,2]
[362997040,1748545851462,-1042.83,0.00020821,2]
[362997041,1748545851472,-10628.62,0.00020821,2]
[362997044,1748545851482,-430.0,0.00020821,2]
[362997046,1748545851492,-925.19,0.00020821,2]
[362997048,1748545851503,-822.77,0.00020821,2]
[362997049,1748545851513,-430.0,0.00020821,2]
[362997051,1748545851523,-430.0,0.00020821,2]
[362997053,1748545851532,-430.0,0.00020821,2]
[362997055,1748545851541,-10228.44,0.00020821,2]
[362997057,1748545851553,-3048.88,0.00020821,2]
[362997059,1748545851562,-430.0,0.00020821,2]
[362997061,1748545851571,-547.61,0.00020821,2]
[362997063,1748545851580,-175.44,0.00020821,2]
[362997065,1748545851589,-1353.14,0.00020821,2]
[362997067,1748545851599,-1599.26,0.00020821,2]
[362997069,1748545851609,-4183.8,0.00020821,2]
[362997071,1748545851619,-430.0,0.00020821,2]
[362997073,1748545851628,-6497.63,0.00020821,2]
[362997075,1748545851637,-515.58,0.00020821,2]
[362997077,1748545851647,-238.46,0.00020821,2]
[362997079,1748545851657,-500.0,0.00020821,2]
[362997081,1748545851667,-430.0,0.00020821,2]
[362997083,1748545851676,-515.3,0.00020821,2]
[362997085,1748545851685,-4275.69,0.00020821,2]
[362997087,1748545851695,-442.32,0.00020821,2]
[362997089,1748545851704,-679.93,0.00020821,2]
[362997091,1748545851715,-2565.74,0.00020821,2]
[362997093,1748545851724,-430.0,0.00020821,2]
[362997095,1748545851734,-3040.55,0.00020821,2]
[362997097,1748545851743,-430.0,0.00020821,2]
[362997099,1748545851752,-430.0,0.00020821,2]
[362997101,1748545851762,-1772.83,0.00020821,2]
[362997103,1748545851772,-2560.95,0.00020821,2]
[362997105,1748545851781,-430.0,0.00020821,2]
[362997107,1748545851790,-6220.01,0.00020821,2]
[362997109,1748545851805,-430.0,0.00020821,2]
[362997111,1748545851815,-430.0,0.00020821,2]
[362997113,1748545851824,-430.0,0.00020821,2]
[362997115,1748545851833,-3911.06,0.00020821,2]
[362997117,1748545851843,-430.0,0.00020821,2]
[362997119,1748545851852,-430.0,0.00020821,2]
[362997120,1748545851861,-8386.41,0.00020821,2]
[362997121,1748545851870,-3076.94,0.00020821,2]
[362997123,1748545851880,-430.0,0.00020821,2]
[362997125,1748545851889,-151.0,0.00020821,2]
[362997127,1748545851898,-4007.18,0.00020821,2]
[362997129,1748545851907,-245.234711,0.00020821,2]
[362997130,1748545851917,-151.0,0.00020821,2]
[362997131,1748545851927,-245.234711,0.00020821,2]
[362997132,1748545851937,-416.814422,0.00020821,2]
[362997133,1748545851946,-512.08,0.00020821,2]
[362997134,1748545851956,-4976.05,0.00020821,2]
[362997136,1748545851965,-416.814422,0.00020821,2]
[362997138,1748545851974,-430.0,0.00020821,2]
[362997140,1748545851983,-967.55,0.00020821,2]
[362997142,1748545851993,-3135.815046,0.00020821,2]
[362997144,1748545852003,-151.0,0.00020821,2]
[362997146,1748545852013,-5350.95,0.00020821,2]